fUSD/lending_fUSD_20240518
["ID","MTS","AMOUNT","RATE_DAILY","PERIOD"]
[327375881,1716028249896,-500.0,0.0003589,9]
[327375882,1716028249905,-500.0,0.0003589,9]
[327375883,1716028249915,-2018.86,0.0003589,9]
[327375884,1716028249924,-500.0,0.0003589,9]
[327375885,1716028249933,-500.0,0.0003589,9]
[327375886,1716028249943,-500.0,0.0003589,9]
[327375887,1716028249952,-1064.87,0.0003589,9]
[327375888,1716028249961,-500.0,0.0003589,9]
[327375889,1716028249970,-9617.9,0.0003589,9]
[327375890,1716028249979,-692.77,0.0003589,9]
[327375891,1716028249989,-500.0,0.0003589,9]
[327375892,1716028249999,-513.28,0.0003589,9]
[327375893,1716028250008,-742.95,0.0003589,9]
[327375894,1716028250018,-500.0,0.0003589,9]
[327375895,1716028250027,-500.0,0.0003589,9]
[327375896,1716028250037,-500.0,0.0003589,9]
[327375897,1716028250046,-500.0,0.0003589,9]
[327375898,1716028250056,-500.0,0.0003589,9]
[327375899,1716028250066,-560.43,0.0003589,9]
[327375900,1716028250076,-584.2,0.0003589,9]
[327375901,1716028250085,-500.0,0.0003589,9]
[327375902,1716028250094,-682.22,0.0003589,9]
[327375903,1716028250103,-500.0,0.0003589,9]
[327375904,1716028250112,-500.0,0.0003589,9]
[327375905,1716028250121,-2972.63,0.0003589,9]
[327375906,1716028250130,-500.0,0.0003589,9]
[327375907,1716028250142,-1502.14,0.0003589,9]
[327375908,1716028250151,-8653.71,0.0003589,9]
[327375909,1716028250161,-500.0,0.0003589,9]
[327375910,1716028250171,-500.0,0.0003589,9]
[327375911,1716028250180,-500.0,0.0003589,9]
[327375912,1716028250189,-500.0,0.0003589,9]
[327375913,1716028250198,-1060.73,0.0003589,9]
[327375914,1716028250207,-685.99,0.0003589,9]
[327375915,1716028250215,-4741.66,0.0003589,9]
[327375916,1716028250225,-500.0,0.0003589,9]
[327375917,1716028250235,-500.0,0.0003589,9]
[327375918,1716028250246,-534.82869019,0.0003589,9]
[327375919,1716028250255,-500.0,0.0003589,9]
[327375920,1716028250264,-677.37,0.0003589,9]
[327375921,1716028250274,-500.0,0.0003589,9]
[327375922,1716028250283,-500.0,0.0003589,9]
[327375923,1716028250292,-8143.51,0.0003589,9]
[327375924,1716028250301,-500.0,0.0003589,9]
[327375925,1716028250310,-593.37,0.0003589,9]
[327375926,1716028250320,-762.84,0.0003589,9]
[327375927,1716028250329,-500.0,0.0003589,9]
[327375928,1716028250339,-3062.15,0.0003589,9]
[327375929,1716028250348,-976.37,0.0003589,9]
[327375930,1716028250358,-500.0,0.0003589,9]
[327375931,1716028250369,-500.0,0.0003589,9]
[327375932,1716028250378,-730.78,0.0003589,9]
[327375933,1716028250387,-8178.18,0.0003589,9]
[327375934,1716028250396,-500.0,0.0003589,9]
[327375935,1716028250405,-500.0,0.0003589,9]
[327375936,1716028250415,-500.0,0.0003589,9]
[327375937,1716028250425,-645.19,0.0003589,9]
[327375938,1716028250434,-500.0,0.0003589,9]
[327375939,1716028250443,-500.0,0.0003589,9]
[327375940,1716028250453,-694.27,0.0003589,9]
[327375941,1716028250463,-500.0,0.0003589,9]
[327375942,1716028250472,-413.73279659,0.0003589,9]
[327375943,1716028250481,-500.0,0.0003589,9]
[327375944,1716028250490,-500.0,0.0003589,9]
[327375945,1716028250499,-500.0,0.0003589,9]
[327375946,1716028250511,-500.0,0.0003589,9]
[327375947,1716028250521,-630.7,0.0003589,9]
[327375948,1716028250531,-500.0,0.0003589,9]
[327375949,1716028250540,-500.0,0.0003589,9]
[327375950,1716028250551,-874.9,0.0003589,9]
[327375951,1716028250562,-500.0,0.0003589,9]
[327375952,1716028250571,-500.0,0.0003589,9]
[327375953,1716028250580,-500.0,0.0003589,9]
[327375954,1716028250591,-500.0,0.0003589,9]
[327375955,1716028250600,-500.0,0.0003589,9]
[327375956,1716028250610,-2041.74,0.0003589,9]
[327375957,1716028250620,-500.0,0.0003589,9]
[327375958,1716028250629,-500.0,0.0003589,9]
[327375959,1716028250639,-1886.41,0.0003589,9]
[327375960,1716028250648,-500.0,0.0003589,9]
[327375961,1716028250657,-527.22488218,0.0003589,9]
[327375962,1716028250666,-500.0,0.0003589,9]
[327375963,1716028250676,-500.0,0.0003589,9]
[327375964,1716028250685,-500.0,0.0003589,9]
[327375965,1716028250694,-500.0,0.0003589,9]
[327375966,1716028250703,-2325.91,0.0003589,9]
[327375967,1716028250712,-500.0,0.0003589,9]
[327375968,1716028250721,-500.0,0.0003589,9]
[327375969,1716028250731,-610.76,0.0003589,9]
[327375970,1716028250740,-939.91,0.0003589,9]
[327375971,1716028250749,-500.0,0.0003589,9]
[327375972,1716028250759,-876.72,0.0003589,9]
[327375973,1716028250768,-630.24,0.0003589,9]
[327375974,1716028250777,-500.0,0.0003589,9]
[327375975,1716028250786,-500.0,0.0003589,9]
[327375976,1716028250795,-500.0,0.0003589,9]
[327375977,1716028250805,-500.0,0.0003589,9]
[327375978,1716028250814,-500.0,0.0003589,9]
[327375979,1716028250824,-500.0,0.0003589,9]
[327375980,1716028250833,-589.26,0.0003589,9]
[327375981,1716028250842,-1224.24,0.0003589,9]
[327375982,1716028250851,-652.79,0.0003589,9]
[327375983,1716028250861,-500.0,0.0003589,9]
[327375984,1716028250870,-3719.28,0.0003589,9]
[327375985,1716028250879,-500.0,0.0003589,9]
[327375986,1716028250888,-500.0,0.0003589,9]
[327375987,1716028250897,-500.0,0.0003589,9]
[327375988,1716028250906,-1724.33,0.0003589,9]
[327375989,1716028250915,-604.2,0.0003589,9]
[327375990,1716028250924,-1288.04,0.0003589,9]
[327375991,1716028250933,-500.0,0.0003589,9]
[327375992,1716028250942,-500.0,0.0003589,9]
[327375993,1716028250951,-500.0,0.0003589,9]
[327375994,1716028250961,-667.15,0.0003589,9]
[327375995,1716028250971,-500.0,0.0003589,9]
[327375996,1716028250980,-500.0,0.0003589,9]
[327375997,1716028250990,-500.0,0.0003589,9]
[327375998,1716028250999,-568.49,0.0003589,9]
[327375999,1716028251009,-500.0,0.0003589,9]
[327376000,1716028251017,-579.58,0.0003589,9]
[327376001,1716028251027,-500.0,0.0003589,9]
[327376002,1716028251036,-500.0,0.0003589,9]
[327376003,1716028251045,-679.88,0.0003589,9]
[327376004,1716028251054,-344.0677609,0.0003589,9]
[327376005,1716028251063,-691.22,0.0003589,9]
[327376006,1716028251072,-500.0,0.0003589,9]
[327376007,1716028251081,-500.0,0.0003589,9]
[327376008,1716028251090,-689.7,0.0003589,9]
[327376009,1716028251100,-3190.6,0.0003589,9]
[327376010,1716028251110,-868.93,0.0003589,9]
[327376011,1716028251121,-601.86,0.0003589,9]
[327376012,1716028251130,-500.0,0.0003589,9]
[327376013,1716028251140,-1297.1,0.0003589,9]
[327376014,1716028251151,-500.0,0.0003589,9]
[327376015,1716028251161,-538.69,0.0003589,9]
[327376016,1716028251171,-627.35,0.0003589,9]
[327376017,1716028251180,-500.0,0.0003589,9]
[327376018,1716028251190,-500.0,0.0003589,9]
[327376019,1716028251198,-774.19,0.0003589,9]
[327376020,1716028251207,-172.97753802,0.0003589,9]
[327376021,1716028251216,-500.0,0.0003589,9]
[327376022,1716028251225,-500.0,0.0003589,9]
[327376023,1716028251234,-664.02,0.0003589,9]
[327376024,1716028251245,-500.0,0.0003589,9]
[327376025,1716028251254,-500.0,0.0003589,9]
[327376026,1716028251263,-500.0,0.0003589,9]
[327376027,1716028251272,-1844.6,0.0003589,9]
[327376028,1716028251281,-500.0,0.0003589,9]
[327376029,1716028251290,-500.0,0.0003589,9]
[327376030,1716028251299,-2010.6,0.0003589,9]
[327376031,1716028251309,-500.0,0.0003589,9]
[327376032,1716028251318,-524.33006349,0.0003589,9]
[327376033,1716028251328,-500.0,0.0003589,9]
[327376034,1716028251338,-500.0,0.0003589,9]
[327376035,1716028251346,-500.0,0.0003589,9]
[327376036,1716028251356,-500.0,0.0003589,9]
[327376037,1716028251366,-757.19,0.0003589,9]
[327376038,1716028251376,-1881.91,0.0003589,9]
[327376039,1716028251385,-500.0,0.0003589,9]
[327376040,1716028251394,-2534.78,0.0003589,9]
[327376041,1716028251403,-500.0,0.0003589,9]
[327376042,1716028251412,-500.0,0.0003589,9]
[327376043,1716028251421,-500.0,0.0003589,9]
[327376044,1716028251431,-1097.44,0.0003589,9]
[327376045,1716028251440,-500.0,0.0003589,9]
[327376046,1716028251448,-679.77,0.0003589,9]
[327376047,1716028251458,-1162.29,0.0003589,9]
[327376048,1716028251467,-507.19378729,0.0003589,9]
[327376049,1716028251475,-500.0,0.0003589,9]
[327376050,1716028251486,-500.0,0.0003589,9]
[327376051,1716028251496,-500.0,0.0003589,9]
[327376052,1716028251505,-500.0,0.0003589,9]
[327376053,1716028251518,-827.2,0.0003589,9]
[327376054,1716028251527,-500.0,0.0003589,9]
[327376055,1716028251536,-500.0,0.0003589,9]
[327376056,1716028251545,-909.67,0.0003589,9]
[327376057,1716028251555,-1186.94,0.0003589,9]
[327376058,1716028251564,-500.0,0.0003589,9]
[327376059,1716028251573,-746.96,0.0003589,9]
[327376060,1716028251582,-500.0,0.0003589,9]
[327376061,1716028251593,-792.07,0.0003589,9]
[327376062,1716028251602,-500.0,0.0003589,9]
[327376063,1716028251611,-1111.77,0.0003589,9]
[327376064,1716028251620,-500.0,0.0003589,9]
[327376065,1716028251630,-500.0,0.0003589,9]
[327376066,1716028251638,-846.79,0.0003589,9]
[327376067,1716028251647,-955.59,0.0003589,9]
[327376068,1716028251657,-500.0,0.0003589,9]
[327376069,1716028251666,-853.23,0.0003589,9]
[327376070,1716028251675,-941.63,0.0003589,9]
[327376071,1716028251685,-998.74,0.0003589,9]
[327376072,1716028251695,-500.0,0.0003589,9]
[327376073,1716028251704,-534.96,0.0003589,9]
[327376074,1716028251880,-500.0,0.0003589,9]
[327376075,1716028251891,-551.91,0.0003589,9]
[327376076,1716028251900,-687.72,0.0003589,9]
[327376077,1716028251909,-500.0,0.0003589,9]
[327376078,1716028251918,-500.0,0.0003589,9]
[327376079,1716028251928,-500.0,0.0003589,9]
[327376080,1716028251937,-500.0,0.0003589,9]
[327376081,1716028251947,-500.0,0.0003589,9]
[327376082,1716028251956,-500.0,0.0003589,9]
[327376083,1716028251965,-574.13,0.0003589,9]
[327376084,1716028251975,-500.0,0.0003589,9]
[327376085,1716028251984,-500.0,0.0003589,9]
[327376086,1716028251994,-617.42,0.0003589,9]
[327376087,1716028252003,-500.0,0.0003589,9]
[327376088,1716028252012,-500.0,0.0003589,9]
[327376089,1716028252021,-500.0,0.0003589,9]
[327376090,1716028252031,-500.0,0.0003589,9]
[327376091,1716028252040,-859.9,0.0003589,9]
[327376092,1716028252049,-500.0,0.0003589,9]
[327376093,1716028252058,-500.0,0.0003589,9]
[327376094,1716028252067,-687.14,0.0003589,9]
[327376095,1716028252076,-500.0,0.0003589,9]
[327376096,1716028252085,-500.0,0.0003589,9]
[327376097,1716028252095,-500.0,0.0003589,9]
[327376098,1716028252105,-500.0,0.0003589,9]
[327376099,1716028252114,-500.0,0.0003589,9]
[327376100,1716028252124,-500.0,0.0003589,9]
[327376101,1716028252134,-1047.56,0.0003589,9]
[327376102,1716028252143,-3747.21,0.0003589,9]
[327376103,1716028252152,-543.16,0.0003589,9]
[327376104,1716028252161,-1569.18,0.0003589,9]
[327376105,1716028252170,-832.05,0.0003589,9]
[327376106,1716028252180,-3974.37,0.0003589,9]
[327376107,1716028252189,-3455.46,0.0003589,9]
[327376108,1716028252198,-529.75790639,0.0003589,9]
[327376109,1716028252207,-500.0,0.0003589,9]
[327376110,1716028252216,-500.0,0.0003589,9]
[327376111,1716028252226,-500.0,0.0003589,9]
[327376112,1716028252235,-500.0,0.0003589,9]
[327376113,1716028252246,-500.0,0.0003589,9]
[327376114,1716028252255,-500.0,0.0003589,9]
[327376115,1716028252265,-819.63,0.0003589,9]
[327376116,1716028252275,-500.0,0.0003589,9]
[327376117,1716028252284,-500.0,0.0003589,9]
[327376118,1716028252294,-500.0,0.0003589,9]
[327376119,1716028252303,-787.6,0.0003589,9]
[327376120,1716028252313,-500.0,0.0003589,2]
[327376121,1716028252322,-500.0,0.0003589,9]
[327376122,1716028252332,-500.0,0.0003589,9]
[327376123,1716028252341,-500.0,0.0003589,9]
[327376124,1716028252351,-500.0,0.0003589,9]
[327376125,1716028252360,-923.18,0.0003589,9]
[327376126,1716028252369,-500.0,0.0003589,9]
[327376127,1716028252379,-500.0,0.0003589,9]
[327376128,1716028252388,-307.3063873,0.0003589,9]
[327376129,1716028252397,-500.0,0.0003589,9]
[327376130,1716028252407,-500.0,0.0003589,9]
[327376131,1716028252416,-500.0,0.0003589,9]
[327376132,1716028252426,-714.14,0.0003589,9]
[327376133,1716028252435,-590.53,0.0003589,9]
[327376134,1716028252444,-500.0,0.0003589,9]
[327376135,1716028252454,-500.0,0.0003589,9]
[327376136,1716028252464,-500.0,0.0003589,9]
[327376137,1716028252475,-500.0,0.0003589,9]
[327376138,1716028252484,-500.0,0.0003589,9]
[327376139,1716028252494,-1040.49,0.0003589,9]
[327376140,1716028252504,-2684.99,0.0003589,9]
[327376141,1716028252518,-500.0,0.0003589,9]
[327376142,1716028252528,-500.0,0.0003589,9]
[327376143,1716028252537,-645.45,0.0003589,9]
[327376144,1716028252547,-500.0,0.0003589,9]
[327376145,1716028252558,-380.62747238,0.0003589,9]
[327376146,1716028252567,-500.0,0.0003589,9]
[327376147,1716028252576,-911.14,0.0003589,9]
[327376148,1716028252587,-500.0,0.0003589,9]
[327376149,1716028252597,-509.42160411,0.0003589,9]
[327376150,1716028252607,-500.0,0.0003589,9]
[327376151,1716028252616,-500.0,0.0003589,9]
[327376152,1716028252626,-500.0,0.0003589,9]
[327376153,1716028252635,-500.0,0.0003589,9]
[327376154,1716028252644,-500.0,0.0003589,9]
[327376155,1716028252654,-500.0,0.0003589,9]
[327376156,1716028252663,-393.43647546,0.0003589,9]
[327376157,1716028252672,-500.0,0.0003589,9]
[327376158,1716028252683,-500.0,0.0003589,9]
[327376159,1716028252692,-500.0,0.0003589,9]
[327376160,1716028252702,-500.0,0.0003589,9]
[327376161,1716028252711,-500.0,0.0003589,9]
[327376162,1716028252720,-1700.0,0.000359,13]
[327376163,1716028252731,-4048.63049486,0.00036024,8]
[327376164,1716028252741,-305.9617255,0.00036085,2]
[327376165,1716028252751,-995.41,0.00036092,2]
[327376166,1716028252761,-171.25975998,0.00036154,2]
[327376167,1716028252770,-155.25506915,0.00036159,4]
[327376168,1716028252780,-377.89293188,0.00036159,4]
[327376169,1716028252789,-2460.17766424,0.00036161,2]
[327376170,1716028252798,-204.05543115,0.00036163,9]
[327376171,1716028252808,-500.0,0.00036163,9]
[327376172,1716028252818,-2000.0,0.00036163,2]
[327376173,1716028252828,-951.94,0.00036163,9]
[327376174,1716028252837,-951.94,0.00036163,9]
[327376175,1716028252847,-500.0,0.00036163,9]
[327376176,1716028252856,-279086.69976025,0.00036164,27]
[327376177,1716028253138,-55116.65609104,0.00036164,27]
[327376178,1716028253149,-523.90325537,0.00036164,9]
[327376179,1716028253158,-500.0,0.00036164,9]
[327376180,1716028253167,-500.0,0.00036164,9]
[327376181,1716028253176,-500.0,0.00036164,9]
[327376182,1716028253185,-500.0,0.00036164,9]
[327376183,1716028253194,-500.0,0.00036164,9]
[327376184,1716028253203,-500.0,0.00036164,9]
[327376185,1716028253213,-500.0,0.00036164,9]
[327376186,1716028253222,-500.0,0.00036164,9]
[327376187,1716028253231,-500.0,0.00036164,9]
[327376188,1716028253240,-500.0,0.00036164,7]
[327376189,1716028253250,-500.0,0.00036164,9]
[327376190,1716028253260,-500.0,0.00036164,9]
[327376191,1716028253270,-500.0,0.00036164,9]
[327376192,1716028253280,-500.0,0.00036164,9]
[327376193,1716028253290,-500.0,0.00036164,9]
[327376194,1716028253299,-500.0,0.00036164,9]
[327376195,1716028253308,-525.82948405,0.00036164,9]
[327376196,1716028253317,-500.0,0.00036164,9]
[327376197,1716028253326,-500.0,0.00036164,9]
[327376198,1716028253335,-500.0,0.00036164,9]
[327376199,1716028253345,-500.0,0.00036164,9]
[327376200,1716028253354,-500.0,0.00036164,9]
[327376201,1716028253363,-500.0,0.00036164,9]
[327376202,1716028253373,-500.0,0.00036164,9]
[327376203,1716028253382,-500.0,0.00036164,9]
[327376204,1716028253391,-500.0,0.00036164,9]
[327376205,1716028253401,-500.0,0.00036164,9]
[327376206,1716028253410,-500.0,0.00036164,9]
[327376207,1716028253419,-500.0,0.00036164,9]
[327376208,1716028253428,-500.0,0.00036164,9]
[327376209,1716028253438,-500.0,0.00036164,9]
[327376210,1716028253447,-500.0,0.00036164,9]
[327376211,1716028253458,-500.0,0.00036164,9]
[327376212,1716028253469,-500.0,0.00036164,9]
[327376213,1716028253478,-591.41824059,0.00036164,9]
[327376214,1716028253488,-500.0,0.00036164,9]
[327376215,1716028253497,-500.0,0.00036164,9]
[327376216,1716028253507,-500.0,0.00036164,9]
[327376217,1716028253521,-500.0,0.00036164,9]
[327376218,1716028253531,-438.12739477,0.00036164,9]
[327376219,1716028253541,-500.0,0.00036164,9]
[327376220,1716028253551,-500.0,0.00036164,9]
[327376221,1716028253561,-500.0,0.00036164,9]
[327376222,1716028253571,-500.0,0.00036164,9]
[327376223,1716028253581,-155.75945052,0.00036164,9]
[327376224,1716028253590,-281.33436742,0.00036164,9]
[327376225,1716028253601,-500.0,0.00036164,9]
[327376226,1716028253612,-500.0,0.00036164,9]
[327376227,1716028253621,-500.0,0.00036164,9]
[327376228,1716028253630,-500.0,0.00036164,9]
[327376229,1716028253639,-500.0,0.00036164,9]
[327376230,1716028253649,-500.0,0.00036164,9]
[327376231,1716028253658,-500.0,0.00036164,9]
[327376232,1716028253667,-255.33272497,0.00036164,9]
[327376233,1716028253677,-500.0,0.00036164,9]
[327376234,1716028253687,-500.0,0.00036164,9]
[327376235,1716028253696,-500.0,0.00036164,9]
[327376236,1716028253707,-500.0,0.00036164,9]
[327376237,1716028253718,-500.0,0.00036164,9]
[327376238,1716028253727,-500.0,0.00036164,9]
[327376239,1716028253737,-500.0,0.00036164,9]
[327376240,1716028253747,-500.0,0.00036164,9]
[327376241,1716028253756,-500.0,0.00036164,9]
[327376242,1716028253765,-500.0,0.00036164,9]
[327376243,1716028253775,-500.0,0.00036164,9]
[327376244,1716028253784,-500.0,0.00036164,9]
[327376245,1716028253793,-500.0,0.00036164,9]
[327376246,1716028253802,-507.76670894,0.00036164,9]
[327376247,1716028253812,-280.9517269,0.00036164,9]
[327376248,1716028253821,-500.0,0.00036164,9]
[327376249,1716028253831,-500.0,0.00036164,9]
[327376250,1716028253841,-212.04238757,0.00036164,9]
[327376251,1716028253850,-522.73620271,0.00036164,9]
[327376252,1716028253860,-500.0,0.00036164,9]
[327376253,1716028253869,-500.0,0.00036164,9]
[327376254,1716028253878,-500.0,0.00036164,9]
[327376255,1716028253888,-511.65762298,0.00036164,9]
[327376256,1716028253897,-500.0,0.00036164,9]
[327376257,1716028253906,-500.0,0.00036164,9]
[327376258,1716028253916,-500.0,0.00036164,9]
[327376259,1716028253925,-500.0,0.00036164,9]
[327376260,1716028253934,-500.0,0.00036164,9]
[327376261,1716028253943,-259.39665749,0.00036164,9]
[327376262,1716028253953,-500.0,0.00036164,9]
[327376263,1716028253962,-500.0,0.00036164,9]
[327376264,1716028253971,-500.0,0.00036164,9]
[327376265,1716028253980,-500.0,0.00036164,9]
[327376266,1716028253989,-2894.21,0.00036164,9]
[327376267,1716028253999,-500.0,0.00036164,9]
[327376268,1716028254008,-220.63782359,0.00036164,9]
[327376269,1716028254018,-500.0,0.00036164,9]
[327376270,1716028254027,-500.0,0.00036164,9]
[327376271,1716028254037,-500.0,0.00036164,9]
[327376272,1716028254046,-3928.43,0.00036164,9]
[327376273,1716028254055,-500.0,0.00036164,9]
[327376274,1716028254065,-500.0,0.00036164,9]
[327376275,1716028254073,-500.0,0.00036164,9]
[327376276,1716028254082,-500.0,0.00036164,9]
[327376277,1716028254092,-500.0,0.00036164,9]
[327376278,1716028254101,-500.0,0.00036164,9]
[327376279,1716028254110,-4048.86,0.00036164,9]
[327376280,1716028254120,-500.0,0.00036164,9]
[327376281,1716028254129,-500.0,0.00036164,9]
[327376282,1716028254138,-500.0,0.00036164,9]
[327376283,1716028254148,-500.0,0.00036164,9]
[327376284,1716028254158,-513.52203712,0.00036164,9]
[327376285,1716028254167,-528.11192199,0.00036164,9]
[327376286,1716028254176,-500.0,0.00036164,9]
[327376287,1716028254185,-500.0,0.00036164,9]
[327376288,1716028254195,-500.0,0.00036164,9]
[327376289,1716028254204,-500.0,0.00036164,9]
[327376290,1716028254214,-500.0,0.00036164,9]
[327376291,1716028254223,-547.08,0.00036164,9]
[327376292,1716028254232,-500.0,0.00036164,9]
[327376293,1716028254241,-500.0,0.00036164,9]
[327376294,1716028254251,-500.0,0.00036164,9]
[327376295,1716028254260,-500.0,0.00036164,9]
[327376296,1716028254269,-538.71200839,0.00036164,9]
[327376297,1716028254279,-500.0,0.00036164,9]
[327376298,1716028254288,-500.0,0.00036164,9]
[327376299,1716028254298,-500.0,0.00036164,9]
[327376300,1716028254307,-321.30690538,0.00036164,9]
[327376301,1716028254325,-178.69309462,0.00036164,9]
[327376302,1716028254335,-500.0,0.00036164,9]
[327376303,1716028254344,-500.0,0.00036164,9]
[327376304,1716028254353,-500.0,0.00036164,9]
[327376305,1716028254363,-500.0,0.00036164,9]
[327376306,1716028254372,-509.13952475,0.00036164,9]
[327376307,1716028254381,-587.8,0.00036164,9]
[327376308,1716028254391,-500.0,0.00036164,9]
[327376309,1716028254400,-500.0,0.00036164,9]
[327376310,1716028254410,-500.0,0.00036164,9]
[327376311,1716028254419,-509.9341759,0.00036164,9]
[327376312,1716028254428,-500.0,0.00036164,9]
[327376313,1716028254437,-572.38,0.00036164,9]
[327376314,1716028254447,-500.0,0.00036164,9]
[327376315,1716028254456,-500.0,0.00036164,9]
[327376316,1716028254466,-616.55,0.00036164,9]
[327376317,1716028254476,-500.0,0.00036164,9]
[327376318,1716028254485,-2711.51,0.00036164,9]
[327376319,1716028254494,-500.0,0.00036164,9]
[327376320,1716028254504,-500.0,0.00036164,9]
[327376321,1716028254516,-500.0,0.00036164,9]
[327376322,1716028254526,-500.0,0.00036164,9]
[327376323,1716028254536,-500.0,0.00036164,9]
[327376324,1716028254545,-536.65,0.00036164,9]
[327376325,1716028254554,-500.0,0.00036164,9]
[327376326,1716028254564,-500.0,0.00036164,9]
[327376327,1716028254574,-500.0,0.00036164,9]
[327376328,1716028254583,-500.0,0.00036164,7]
[327376329,1716028254594,-500.0,0.00036164,9]
[327376330,1716028254604,-500.0,0.00036164,9]
[327376331,1716028254613,-554.43,0.00036164,9]
[327376332,1716028254622,-500.0,0.00036164,9]
[327376333,1716028254631,-500.0,0.00036164,9]
[327376334,1716028254640,-500.0,0.00036164,9]
[327376335,1716028254649,-500.0,0.00036164,9]
[327376336,1716028254657,-500.0,0.00036164,9]
[327376337,1716028254666,-500.0,0.00036164,9]
[327376338,1716028254675,-500.0,0.00036164,9]
[327376339,1716028254684,-500.0,0.00036164,9]
[327376340,1716028254693,-500.0,0.00036164,9]
[327376341,1716028254702,-563.92,0.00036164,9]
[327376342,1716028254711,-571.73,0.00036164,9]
[327376343,1716028254720,-603.58,0.00036164,9]
[327376344,1716028254729,-545.62,0.00036164,9]
[327376345,1716028254738,-500.0,0.00036164,9]
[327376346,1716028254748,-500.0,0.00036164,9]
[327376347,1716028254757,-500.0,0.00036164,9]
[327376348,1716028254766,-500.0,0.00036164,9]
[327376349,1716028254775,-500.0,0.00036164,9]
[327376350,1716028254785,-500.0,0.00036164,9]
[327376351,1716028254794,-500.0,0.00036164,9]
[327376352,1716028254803,-546.53,0.00036164,9]
[327376353,1716028254813,-500.0,0.00036164,9]
[327376354,1716028254822,-668.93,0.00036164,9]
[327376355,1716028254831,-525.0145491,0.00036164,9]
[327376356,1716028254840,-500.0,0.00036164,9]
[327376357,1716028254850,-500.0,0.00036164,9]
[327376358,1716028254859,-500.0,0.00036164,9]
[327376359,1716028254869,-500.0,0.00036164,9]
[327376360,1716028254879,-500.0,0.00036164,9]
[327376361,1716028254888,-500.0,0.00036164,9]
[327376362,1716028254897,-500.0,0.00036164,9]
[327376363,1716028254907,-500.0,0.00036164,9]
[327376364,1716028254916,-500.0,0.00036164,9]
[327376365,1716028254925,-500.0,0.00036164,9]
[327376366,1716028254935,-500.0,0.00036164,9]
[327376367,1716028254944,-740.89,0.00036164,9]
[327376368,1716028254953,-3127.32,0.00036164,9]
[327376369,1716028255149,-500.0,0.00036164,9]
[327376370,1716028255158,-500.0,0.00036164,9]
[327376371,1716028255168,-538.28,0.00036164,9]
[327376372,1716028255177,-593.03,0.00036164,9]
[327376373,1716028255186,-500.0,0.00036164,9]
[327376374,1716028255195,-500.0,0.00036164,9]
[327376375,1716028255205,-500.0,0.00036164,9]
[327376376,1716028255214,-1731.31,0.00036164,9]
[327376377,1716028255223,-500.0,0.00036164,9]
[327376378,1716028255232,-500.0,0.00036164,9]
[327376379,1716028255241,-500.0,0.00036164,9]
[327376380,1716028255250,-500.0,0.00036164,9]